bitfinex-derivatives/quotes_SOLF0:USTF0_20251125
["timestamp","ask_amount","ask_price","bid_price","bid_amount"]
[1764083200689,0.05122817,133.64,133.61,3.03543286]
[1764083202181,104.7421,133.74,133.61,3.03543286]
[1764083202182,26.28,133.72,133.62,2.98]
[1764083202381,110.69791759,133.74,133.64,2.98]
[1764083202382,5.95581759,133.74,133.64,2.98]
[1764083202581,131.0099,133.76,133.67,9.7165]
[1764083202788,104.7336,133.75,133.67,2.98]
[1764083203094,6.7354,133.7,133.64,29.26]
[1764083203396,0.05660718,133.68,133.66,0.04945384]
[1764083204090,6.79300718,133.68,133.66,0.04945384]
[1764083204296,12.74882477,133.68,133.66,0.04945384]
[1764083204497,104.806,133.66,133.59,26.28]
[1764083204788,104.806,133.66,133.57,26.28]
[1764083204789,104.8218,133.64,133.57,26.28]
[1764083205290,6.7397,133.62,133.57,29.26]
[1764083205479,0.04776421,133.61,133.58,0.05172193]
[1764083206199,6.78786421,133.61,133.58,0.05172193]
[1764083207391,6.7406,133.6,133.58,0.05172193]
[1764083207596,0.04776421,133.61,133.58,0.05172193]
[1764083207792,0.04776421,133.61,133.58,3.03172193]
[1764083208697,0.04776421,133.61,133.59,6.7407]
[1764083208900,0.04776421,133.61,133.6,2.98]
[1764083209294,6.7354,133.7,133.6,9.72]
[1764083209495,32.23581759,133.71,133.6,9.72]
[1764083210204,104.7128,133.78,133.64,2.98]
[1764083210394,0.05279243,133.72,133.7,0.05110479]
[1764083210596,0.05330608,133.72,133.7,0.05110479]
[1764083211293,0.05330608,133.72,133.7,3.03110479]
[1764083211488,5.95581759,133.79,133.72,6.7341]
[1764083211693,104.6382,133.88,133.74,2.98]
[1764083211889,5.95581759,133.86,133.74,2.98]
[1764083212089,5.95581759,133.86,133.76,2.98]
[1764083212299,12.68311759,133.86,133.76,2.98]
[1764083212499,0.0549326,133.82,133.8,0.05240396]
[1764083216689,0.0549326,133.82,133.8,3.03240396]
[1764083217300,32.25581759,133.89,133.8,3.03240396]
[1764083217605,5.95581759,133.92,133.83,2.98]
[1764083218001,12.68031759,133.92,133.83,2.98]
[1764083218303,0.05720175,133.89,133.86,0.05548702]
[1764083219299,116.3917698,135.11,133.86,29.45548702]
[1764083219300,104.5791,133.95,133.86,29.45548702]
[1764083219498,104.5764,133.95,133.86,29.4]
[1764083219698,6.7235,133.94,133.86,29.4]
[1764083219896,104.6075,133.91,133.82,62.0]
[1764083220102,104.6007,133.92,133.83,26.28]
[1764083220304,0.0552094,133.89,133.86,3.16764315]
[1764083220605,0.0552094,133.89,133.86,0.04764315]
[1764083220800,6.7812094,133.89,133.86,0.04764315]
[1764083221001,104.6793094,133.89,133.86,0.04764315]
[1764083221192,104.6324,133.88,133.78,29.38]
[1764083221399,6.7269,133.87,133.79,3.12]
[1764083221596,5.95581759,133.92,133.82,9.8489]
[1764083221801,5.95581759,133.92,133.78,26.26]
[1764083221802,104.6074,133.91,133.83,3.12]
[1764083222002,104.6242,133.89,133.8,0.97708]
[1764083222198,0.04960224,133.86,133.83,3.16943571]
[1764083222402,0.04960224,133.86,133.83,0.04943571]
[1764083223912,110.65911983,133.86,133.83,0.04943571]
[1764083224101,6.00541983,133.86,133.83,0.04943571]
[1764083224307,0.04960224,133.86,133.83,0.04943571]
[1764083224904,6.77710224,133.86,133.83,0.04943571]
[1764083225107,0.04960224,133.86,133.83,3.16943571]
[1764083225610,136.81551759,133.92,133.83,3.16943571]
[1764083225611,5.95581759,133.92,133.83,3.16943571]
[1764083225818,104.6074,133.91,133.84,3.12]
[1764083226019,104.5921,133.93,133.84,3.12]
[1764083226311,104.6002,133.92,133.84,3.12]
[1764083226514,104.5921,133.93,133.87,0.05587606]
[1764083226716,0.05674127,133.89,133.87,0.05587606]
[1764083227419,6.78284127,133.89,133.87,0.05587606]
[1764083228117,6.78264127,133.89,133.87,0.05587606]
[1764083228509,0.05674127,133.89,133.87,0.05587606]
[1764083228908,0.05674127,133.89,133.87,3.17587606]
[1764083229317,0.05674127,133.89,133.87,0.05587606]
[1764083229927,6.78264127,133.89,133.87,0.05587606]
[1764083230408,0.05674127,133.89,133.87,0.05587606]
[1764083231221,6.78264127,133.89,133.87,0.05587606]
[1764083231718,104.6358,133.88,133.81,3.12]
[1764083232420,6.7262,133.88,133.81,3.12]
[1764083232616,6.7262,133.88,133.83,0.04770774]
[1764083232921,0.05677963,133.86,133.83,3.16770774]
[1764083233521,0.05677963,133.86,133.84,3.12]
[1764083234306,110.54711759,133.94,133.84,3.12]
[1764083234617,104.5913,133.94,133.85,3.12]
[1764083234817,104.5913,133.94,133.86,3.12]
[1764083235215,104.6171,133.9,133.82,29.36]
[1764083235423,0.04974654,133.87,133.85,3.17641195]
[1764083235620,5.95581759,133.94,133.87,3.12]
[1764083235920,130.831,133.96,133.87,3.12]
[1764083235921,104.5789,133.95,133.87,3.12]
[1764083236423,104.571,133.96,133.87,3.12]
[1764083236723,0.04867868,133.93,133.9,0.05534346]
[1764083236918,0.04867868,133.93,133.9,9.90044346]
[1764083237222,0.04867868,133.93,133.91,2.94]
[1764083237415,0.04867868,133.93,133.91,9.6645]
[1764083237610,104.5246,134.02,133.92,2.94]
[1764083238012,6.7208,133.99,133.94,9.6629]
[1764083238211,6.7208,133.99,133.94,2.94]
[1764083238413,104.5332,134.01,133.94,2.94]
[1764083238608,6.7213,133.98,133.96,0.04961641]
[1764083239817,104.5759,133.96,133.87,2.94]
[1764083240018,104.5763,133.95,133.87,2.94]
[1764083240326,6.7248,133.91,133.87,2.94]
[1764083240817,0.05126178,133.9,133.88,0.05572648]
[1764083241014,0.05126178,133.9,133.88,2.99572648]
[1764083241814,104.5684,133.96,133.88,2.99572648]
[1764083242416,26.24,134.0,133.89,2.94]
[1764083242723,0.05513212,133.96,133.94,2.94]
[1764083243333,104.5308,134.01,133.94,2.94]
[1764083244117,104.5278,134.02,133.94,2.94]
[1764083244327,0.0518221,133.99,133.97,0.04950493]
[1764083244726,6.7213,133.98,133.97,0.04950493]
[1764083245628,0.0518221,133.99,133.9,64.94]
[1764083245928,6.7233,133.94,133.91,2.94]
[1764083246314,104.5868,133.94,133.87,2.94]
[1764083246515,104.5868,133.94,133.87,29.18]
[1764083246725,104.5868,133.94,133.89,0.05343614]
[1764083246726,104.65397966,133.92,133.89,0.05343614]
[1764083246921,6.7249,133.91,133.89,0.05343614]
[1764083247731,104.65397966,133.92,133.89,0.05343614]
[1764083247732,0.05137966,133.92,133.89,2.99343614]
[1764083247930,104.5674,133.97,133.89,2.99343614]
[1764083248235,104.5684,133.96,133.89,2.94]
[1764083248532,104.584,133.94,133.89,2.94]
[1764083248727,104.5861,133.94,133.89,2.94]
[1764083248930,0.05647042,133.93,133.9,0.05191767]
[1764083249835,0.05647042,133.93,133.9,2.99191767]
[1764083251733,208.9952,134.06,133.92,2.94]
[1764083251933,104.514,134.03,133.92,2.94]
[1764083252132,6.7196,134.02,133.94,2.94]
[1764083252432,104.4976,134.06,133.94,2.94]
[1764083252633,104.4976,134.06,133.99,0.05122824]
[1764083252634,6.77508461,134.01,133.99,0.05122824]
[1764083252935,104.5322,134.01,133.9,2.94]
[1764083253123,104.5381,134.0,133.9,9.6652]
[1764083253320,104.5171,134.03,133.91,2.94]
[1764083253734,0.05423516,133.98,133.96,0.05281602]
[1764083253936,0.04969043,133.98,133.96,0.05281602]
[1764083254934,6.77099043,133.98,133.96,0.05281602]
[1764083255633,0.04969043,133.98,133.96,0.05281602]
[1764083256625,0.04969043,133.98,133.89,62.0]
[1764083256626,106.10319043,133.98,133.89,62.0]
[1764083256836,104.5411,134.0,133.89,2.94]
[1764083257037,5.44718204,133.99,133.89,2.94]
[1764083257340,104.5461,133.99,133.9,6.7252]
[1764083257530,104.5608,133.97,133.89,2.94]
[1764083257839,6.77214872,133.94,133.92,0.05309413]
[1764083258138,0.04884872,133.94,133.92,0.05309413]
[1764083258728,6.77214872,133.94,133.92,0.05309413]
[1764083259740,0.04884872,133.94,133.92,0.05309413]
[1764083261335,0.04884872,133.94,133.92,2.99309413]
[1764083261642,6.721,133.99,133.92,4.49309413]
[1764083261936,6.7188,134.03,133.92,2.94]
[1764083262141,5.46657672,134.02,133.94,2.94]
[1764083262437,6.7193,134.02,133.94,2.94]
[1764083262742,0.05378162,133.99,133.97,0.05606976]
[1764083262941,0.0482423,133.99,133.97,0.05606976]
[1764083263142,0.0482423,133.99,133.97,2.99606976]
[1764083264642,5.46538584,134.05,133.97,2.99606976]
[1764083264941,5.46538584,134.04,133.97,2.94]
[1764083265143,104.5243,134.02,133.94,62.0]
[1764083265343,104.4985,134.05,133.94,2.94]
[1764083265533,5.462698,134.04,133.94,2.94]
[1764083265847,0.05087482,134.0,133.98,2.99311143]
[1764083266037,0.05246879,134.0,133.98,2.99311143]
[1764083266240,0.05246879,134.0,133.98,0.05311143]
[1764083268333,6.77286879,134.0,133.98,0.05311143]
[1764083269340,6.77286879,134.0,133.98,0.00311143]
[1764083269540,6.7221,133.97,133.91,3.21]
[1764083269741,104.5532,133.98,133.88,6.7261]
[1764083269938,6.7233,133.94,133.88,3.21]
[1764083270341,104.5716,133.96,133.86,3.21]
[1764083270547,0.0522013,133.92,133.9,0.04752079]
[1764083270743,0.05199941,133.92,133.9,0.04752079]
[1764083272250,0.05199941,133.92,133.9,3.25752079]
[1764083274348,104.5372,134.0,133.9,3.25752079]
[1764083274349,113.8385846,134.03,133.91,3.21]
[1764083274546,6.7208,133.99,133.93,6.7236]
[1764083274749,104.5296,134.01,133.93,6.7236]
[1764083274951,104.5377,134.0,133.92,3.21]
[1764083275142,6.7213,133.98,133.92,3.21]
[1764083275346,0.05134969,133.96,133.94,0.05367729]
[1764083277066,6.7244,133.92,133.87,3.21]
[1764083278055,0.05439432,133.91,133.88,0.04913502]
[1764083278259,0.05013482,133.91,133.88,0.04862802]
[1764083278659,0.05013482,133.91,133.88,2.97862802]
[1764083279366,0.05013482,133.91,133.89,2.93]
[1764083280364,113.8576846,134.0,133.9,2.93]
[1764083280559,104.5457,133.99,133.9,2.93]
[1764083280960,6.7213,133.98,133.9,107.5414]
[1764083281360,0.05171477,133.95,133.93,0.05484028]
[1764083283267,0.05171477,133.95,133.93,2.98484028]
[1764083283775,104.5227,134.02,133.93,2.98484028]
[1764083284073,104.5297,134.01,133.92,26.2]
[1764083284367,26.2,134.05,133.95,2.93]
[1764083284560,104.4908,134.06,133.95,2.93]
[1764083284762,0.03427572,134.02,133.99,2.98482302]
[1764083285072,0.03427572,134.02,133.99,0.05272524]
[1764083286072,0.03427572,134.02,133.99,2.98272524]
[1764083286761,0.03427572,134.02,133.99,0.05272524]
[1764083287167,0.03427572,134.02,133.99,2.98272524]
[1764083288370,0.03427572,134.02,133.99,0.05272524]
[1764083288763,6.75357572,134.02,133.99,0.05272524]
[1764083289470,0.03427572,134.02,133.99,0.05272524]
[1764083289772,0.03427572,134.02,133.99,2.98272524]
[1764083290170,0.03427572,134.02,133.99,0.05272524]
[1764083290873,6.7199,134.01,133.99,0.05272524]
[1764083297278,6.7199,134.01,133.89,104.62]
[1764083297279,104.5655,133.97,133.89,3.12]
[1764083297776,104.5547,133.98,133.89,9.8456]
[1764083298083,104.5487,133.99,133.9,3.12]
[1764083298279,0.05696872,133.96,133.94,3.12]
[1764083299480,104.5075,134.04,133.95,3.12]
[1764083300081,6.7203,134.0,133.97,3.12]
[1764083300278,104.5226,134.02,133.95,62.0]
[1764083300479,0.03003225,134.0,133.97,0.05206447]
[1764083300884,0.03003225,134.0,133.97,3.17206447]
[1764083301376,0.03003225,134.0,133.97,9.89366447]
[1764083301576,0.03003225,134.0,133.98,3.12]
[1764083302383,104.4936,134.06,133.99,3.12]
[1764083302779,104.4993,134.05,133.99,3.12]
[1764083303283,6.7198,134.01,133.96,36.0222]
[1764083303581,6.7198,134.01,133.97,3.16877916]
[1764083304383,6.7198,134.01,133.98,3.12]
[1764083305088,104.5071,134.04,133.98,3.12]
[1764083305479,104.477,134.08,133.98,3.12]
[1764083305681,104.4707,134.09,134.02,3.17732035]
[1764083305881,104.4903,134.06,134.02,0.05732035]
[1764083306177,104.4848,134.07,134.02,0.05732035]
[1764083306375,104.4997,134.05,134.02,0.05732035]
[1764083306582,6.7182,134.04,134.02,0.05732035]
[1764083306888,104.4707,134.09,134.02,3.17732035]
[1764083307384,104.4651,134.08,134.02,3.17732035]
[1764083307785,6.7166,134.06,134.02,3.17732035]
[1764083307985,104.4707,134.09,134.02,3.17732035]
[1764083308181,104.4526,134.11,134.02,9.89582035]
[1764083308388,104.4526,134.11,134.05,0.05454013]
[1764083308778,6.7152,134.09,134.05,3.17454013]
[1764083308990,104.4477,134.12,134.05,3.17454013]
[1764083309376,6.7144,134.11,134.06,3.12]
[1764083309580,6.7144,134.11,134.07,3.17213504]
[1764083310181,6.7133,134.13,134.07,3.17213504]
[1764083310590,104.4052,134.16,134.07,3.17213504]
[1764083310795,6.7124,134.15,134.1,3.16748995]
[1764083311788,104.4034,134.16,134.1,3.16748995]
[1764083311985,104.3869,134.18,134.1,3.16748995]
[1764083312190,104.4023,134.16,134.1,3.16748995]
[1764083312687,104.4184,134.14,134.1,0.04748995]
[1764083312879,104.4255,134.13,134.1,0.04748995]
[1764083313087,6.7138,134.12,134.1,0.04748995]
[1764083315486,6.7138,134.12,134.1,3.16748995]
[1764083316088,6.7128,134.14,134.1,3.16748995]
[1764083316481,104.3956,134.17,134.1,3.16748995]
[1764083316682,104.3584,134.22,134.13,3.12]
[1764083316888,104.3728,134.2,134.16,0.05290113]
[1764083317183,104.3584,134.22,134.16,0.05290113]
[1764083317184,104.3416,134.24,134.16,3.17290113]
[1764083317385,26.16,134.29,134.16,3.12]
[1764083317585,104.3331,134.25,134.19,0.05704324]
[1764083317892,6.7082,134.23,134.21,3.17416802]
[1764083318087,104.3258,134.26,134.21,3.17416802]
[1764083318285,130.4342,134.33,134.21,29.33416802]
[1764083318489,104.2857,134.31,134.26,0.05285312]
[1764083318686,104.2951,134.3,134.26,0.05285312]
[1764083318988,6.7044,134.31,134.26,0.05285312]
[1764083319195,104.278,134.32,134.26,3.17285312]
[1764083319387,104.2966,134.3,134.26,0.05285312]
[1764083319593,104.3022,134.29,134.26,0.05285312]
[1764083319782,104.3101,134.28,134.26,0.05285312]
[1764083319986,104.3022,134.29,134.26,0.05285312]
[1764083320183,104.2933,134.3,134.26,0.05285312]
[1764083320386,104.3023,134.29,134.26,0.05285312]
[1764083320590,104.2813,134.32,134.26,0.05285312]
[1764083320895,104.2547,134.35,134.27,3.12]
[1764083321189,130.4,134.37,134.3,3.17091997]
[1764083321386,104.2555,134.35,134.3,3.17091997]
[1764083321585,104.2633,134.34,134.3,3.17091997]
[1764083321793,104.2416,134.37,134.3,3.17091997]
[1764083321986,104.2477,134.36,134.3,3.17091997]
[1764083322186,6.7028,134.34,134.3,3.17091997]
[1764083322487,104.2639,134.34,134.3,3.17091997]
[1764083322792,110.9821,134.32,134.3,0.05091997]
[1764083323290,104.2701,134.33,134.3,3.17091997]
[1764083323291,104.2732,134.33,134.3,3.17091997]
[1764083323494,6.704,134.31,134.3,0.05091997]
[1764083323691,104.3176,134.27,134.21,24.18]
[1764083323887,6.7078,134.24,134.21,3.12]
[1764083324086,104.3411,134.24,134.16,5.93158127]
[1764083324286,104.3176,134.27,134.18,3.12]
[1764083324287,104.3244,134.26,134.18,3.12]
[1764083324492,104.3244,134.26,134.19,3.12]
[1764083324688,104.39231306,134.24,134.21,0.05643885]
[1764083325195,6.7083,134.23,134.21,0.05643885]
[1764083326102,0.04951306,134.24,134.21,3.17643885]
[1764083326297,104.39251306,134.24,134.21,0.05643885]
[1764083326496,0.04951306,134.24,134.21,0.05643885]
[1764083326894,6.75731306,134.24,134.21,0.05643885]
[1764083327096,6.75731306,134.24,134.21,3.26643885]
[1764083327605,0.04951306,134.24,134.21,3.26643885]
[1764083329003,6.75731306,134.24,134.21,3.26643885]
[1764083329504,0.04951306,134.24,134.21,3.26643885]
[1764083330702,6.7082,134.23,134.21,0.05643885]
[1764083330902,0.04951306,134.24,134.21,3.26643885]
[1764083331291,5.93158127,134.22,134.08,26.12]
[1764083331595,5.93158127,134.12,134.0,0.99334]
[1764083331801,2.70158127,134.06,134.03,62.0]
[1764083331998,2.70158127,134.06,134.01,26.12]
[1764083332306,6.7179,134.04,133.98,26.12]
[1764083332499,104.54419584,134.05,133.98,26.12]
[1764083332500,0.05369584,134.05,134.0,0.05212621]
[1764083332903,107.5616,134.02,134.0,0.05212621]
[1764083333105,107.5616,134.02,133.87,104.6242]
[1764083333106,107.5716,134.01,133.89,115.48]
[1764083333402,3.05,134.01,133.9,3.21]
[1764083333703,107.569,134.01,133.9,3.21]
[1764083334002,104.4924,134.05,133.95,3.21]
[1764083334209,3.05,134.06,133.97,3.21]
[1764083334802,3.05,134.06,133.98,3.21]
[1764083335108,3.05,134.06,133.99,29.35]
[1764083335303,0.04786348,134.03,134.01,0.04791075]
[1764083336008,3.09786348,134.03,134.01,0.04791075]
[1764083336196,107.60546348,134.03,134.01,0.04791075]
[1764083336694,104.55546348,134.03,134.01,0.04791075]
[1764083336895,104.55476348,134.03,134.01,0.04791075]
[1764083337109,107.60476348,134.03,134.01,0.04791075]
[1764083337610,6.7185,134.02,134.01,0.04791075]
[1764083337999,9.7685,134.02,134.01,0.04791075]
[1764083339502,6.7199,134.0,133.96,3.22]
[1764083339815,104.499,134.04,133.98,3.22]
[1764083340207,111.2219,134.03,133.99,26.14]
[1764083340403,0.05111094,134.02,134.0,0.04945913]
[1764083341203,0.05111094,134.02,134.0,9.2010404]
[1764083341400,3.12,134.07,134.01,3.22]
[1764083341606,107.5923,134.07,134.01,3.22]
[1764083341807,6.7172,134.05,134.01,3.22]
[1764083342014,111.2055,134.05,134.01,26.14]
[1764083342204,3.12,134.04,134.01,62.0]
[1764083342507,111.26306394,134.04,134.0,32.1210404]
[1764083342810,3.12,134.01,134.0,0.04945913]
[1764083343107,111.26,133.99,133.94,35.29158127]
[1764083343308,111.26,133.99,133.89,44.7634481]
[1764083343309,107.6627,133.98,133.93,26.14]
[1764083343504,104.5395,133.99,133.92,29.36]
[1764083343702,104.5395,133.99,133.92,3.22]
[1764083343703,6.721,133.98,133.92,3.22]
[1764083343898,0.04790339,133.96,133.94,3.27401501]
[1764083344105,6.76980339,133.96,133.94,0.05401501]
[1764083344304,0.04790339,133.96,133.94,0.05401501]
[1764083345106,3.12,134.02,133.94,9.20559628]
[1764083345310,3.12,134.02,133.95,65.22]
[1764083345610,104.5196,134.01,133.95,91.36]
[1764083346005,104.4925,134.05,133.96,3.22]
[1764083346211,6.77140824,134.02,133.99,0.04723023]
[1764083346810,6.7193,134.01,133.99,0.04723023]
[1764083347810,111.2386,134.01,133.99,0.04723023]
[1764083348008,114.3586,134.01,133.99,0.04723023]
[1764083348215,0.05270824,134.02,133.99,0.04723023]
[1764083348516,0.05270824,134.02,133.99,3.26723023]
[1764083349312,0.05270824,134.02,134.01,3.22]
[1764083349914,0.05270824,134.02,134.01,29.38]
[1764083350109,0.05270824,134.02,134.01,26.16]
[1764083351716,0.05270824,134.02,134.0,62.0]
[1764083351917,0.05270824,134.02,133.99,0.04723023]
[1764083352110,0.05270824,134.02,134.0,26.16]
[1764083352314,0.05270824,134.02,133.99,0.04723023]
[1764083352315,0.05270824,134.02,134.01,29.38]
[1764083353719,0.05270824,134.02,134.01,3.22]
[1764083353917,0.05270824,134.02,134.01,29.38]
[1764083354511,3.12,134.11,134.02,3.22]
[1764083354717,104.4644,134.08,134.02,3.22]
[1764083355010,104.4644,134.08,134.03,62.0]
[1764083355011,6.7172,134.05,134.03,62.0]
[1764083355216,104.488,134.05,134.03,26.16]
[1764083355410,104.488,134.05,134.02,26.16]
[1764083355819,104.4803,134.06,134.02,26.16]
[1764083355820,3.12,134.06,134.02,26.16]
[1764083356013,104.4644,134.08,134.02,29.38]
[1764083356213,104.4724,134.07,134.03,3.22]
[1764083356406,6.7167,134.06,134.03,3.22]
[1764083357313,3.16,134.05,134.03,26.14]
[1764083357714,104.4804,134.06,134.03,26.14]
[1764083358222,107.6404,134.06,134.03,26.14]
[1764083358421,6.7177,134.04,134.03,26.14]
[1764083358615,3.16,134.07,134.03,26.14]
[1764083358817,0.04957674,134.06,134.04,0.05203613]
[1764083359130,6.7172,134.05,134.04,0.05203613]
[1764083359420,0.04957674,134.06,134.04,2.98203613]
[1764083359617,0.04957674,134.06,134.04,0.05203613]
[1764083360016,0.04957674,134.06,134.05,26.14]
[1764083360516,0.04957674,134.06,134.05,29.07]
[1764083360820,104.453,134.1,134.06,2.93]
[1764083361022,6.7148,134.1,134.06,2.93]
[1764083361522,6.7138,134.12,134.06,2.93]
[1764083361716,3.16,134.13,134.06,2.93]
[1764083361916,3.16,134.12,134.08,0.05637917]
[1764083362113,3.16,134.09,134.08,0.05637917]
[1764083363517,3.16,134.07,134.05,26.14]
[1764083363718,3.16,134.07,134.04,26.14]
[1764083363915,104.4456,134.11,134.04,26.14]
[1764083364123,107.6056,134.11,134.04,26.14]
[1764083364722,6.7159,134.08,134.06,0.05260719]
[1764083365826,9.8759,134.08,134.06,0.05260719]
[1764083366030,6.7159,134.08,134.06,0.05260719]
[1764083366824,9.8759,134.08,134.06,0.05260719]
[1764083367931,3.16,134.07,134.06,0.05260719]
[1764083368132,6.7159,134.08,134.06,0.05260719]
[1764083369028,3.16,134.07,134.06,0.05260719]
[1764083371428,3.16,134.17,134.07,2.93]
[1764083371640,3.16,134.17,134.08,12.22345277]
[1764083371923,3.16,134.17,134.09,26.14]
[1764083372123,3.16,134.17,134.08,2.93]
[1764083372323,3.16,134.17,134.11,0.05463841]
[1764083373029,3.16,134.14,134.11,0.05463841]
[1764083373231,3.16,134.12,134.11,0.05463841]
[1764083373420,9.8735,134.12,134.11,0.05463841]
[1764083373617,104.4492,134.1,134.02,9.29345277]
[1764083373828,104.4492,134.1,134.04,26.14]
[1764083374024,6.7158,134.08,134.04,29.07]
[1764083374227,107.6035,134.11,134.05,2.93]
[1764083374423,6.7154,134.09,134.05,2.93]
[1764083374619,9.77709392,134.19,134.05,2.93]
[1764083374819,5.42730455,134.18,134.09,2.93]
[1764083375028,0.05337903,134.15,134.12,0.05529595]
[1764083375331,0.05337903,134.15,134.13,26.14]
[1764083375725,0.05337903,134.15,134.13,29.07]
[1764083376432,0.05337903,134.15,134.14,2.93]
[1764083377625,0.05337903,134.15,134.14,64.93]
[1764083377934,3.16,134.25,134.15,2.93]
[1764083378132,5.44546433,134.24,134.15,2.93]
[1764083378326,3.16,134.23,134.16,26.14]
[1764083378930,3.16,134.23,134.11,111.1514]
[1764083378931,3.16,134.21,134.18,0.05513907]
[1764083379621,107.5317,134.2,134.18,0.05513907]
[1764083379825,3.16,134.19,134.18,0.05513907]
[1764083381035,3.16,134.2,134.18,0.05513907]
[1764083382337,9.8698,134.2,134.18,0.05513907]
[1764083382630,3.16,134.19,134.18,0.05513907]
[1764083385431,3.16,134.19,134.11,51.74859592]
[1764083385432,9.8712,134.17,134.11,51.74859592]
[1764083386136,3.16,134.17,134.11,51.74859592]
[1764083386340,0.04746732,134.15,134.13,2.98203868]
[1764083386730,0.04746732,134.15,134.13,0.05203868]
[1764083387439,0.04746732,134.15,134.13,3.14203868]
[1764083387639,0.04746732,134.15,134.13,0.05203868]
[1764083389237,0.04746732,134.15,134.13,3.14203868]
[1764083391039,117.7479,134.25,134.13,12.43549145]
[1764083391040,3.21,134.21,134.13,12.43549145]
[1764083391244,3.21,134.21,134.13,12.38345277]
[1764083391443,3.21,134.21,134.14,3.09]
[1764083392038,9.9192,134.21,134.16,3.14715709]
[1764083392349,3.21,134.2,134.16,29.26715709]
[1764083392643,3.21,134.2,134.17,0.05144937]
[1764083393738,104.3331,134.25,134.17,0.05144937]
[1764083393739,107.5431,134.25,134.17,3.14144937]
[1764083394045,3.21,134.25,134.17,3.14144937]
[1764083394339,9.9173,134.25,134.18,3.09]
[1764083394549,3.21,134.24,134.2,0.04773262]
[1764083394739,9.9177,134.24,134.2,0.04773262]
[1764083395744,3.21,134.22,134.2,0.04773262]
[1764083397642,3.21,134.21,134.2,0.04773262]
[1764083398348,3.04,134.23,134.2,0.04773262]
[1764083399859,9.7481,134.23,134.2,0.04773262]
[1764083400243,104.3276,134.26,134.2,0.04773262]
[1764083400244,3.04,134.26,134.2,3.09773262]
[1764083400444,3.04,134.3,134.22,3.05]
[1764083400744,3.04,134.36,134.26,3.05]
[1764083400939,3.04,134.34,134.26,3.05]
[1764083401140,3.04,134.34,134.3,3.10106514]
[1764083401345,3.04,134.4,134.3,3.10106514]
[1764083401548,3.04,134.4,134.31,12.34345277]
[1764083401741,3.04,134.4,134.34,0.05632377]
[1764083402542,3.04,134.35,134.34,0.05632377]
[1764083403052,3.04,134.34,134.29,26.1]
[1764083403250,3.04,134.33,134.26,3.05]
[1764083403444,3.04,134.33,134.27,26.1]
[1764083403640,3.04,134.33,134.28,62.0]
[1764083403841,0.05126866,134.32,134.29,3.09981634]
[1764083404048,0.05330589,134.32,134.29,3.10254868]
[1764083404245,0.05330589,134.32,134.3,26.1]
[1764083404437,0.05330589,134.32,134.31,3.05]
[1764083404640,3.04,134.43,134.34,9.752]
[1764083404951,3.04,134.47,134.36,3.05]
[1764083405148,3.04,134.47,134.37,26.1]
[1764083405359,3.04,134.45,134.38,26.1]
[1764083405539,3.04,134.45,134.4,3.10705724]
[1764083405743,3.04,134.49,134.41,3.05]
[1764083405943,3.04,134.49,134.44,0.05588818]
[1764083406751,104.1539,134.48,134.44,0.05588818]
[1764083406960,3.04,134.53,134.44,0.05588818]
[1764083407148,3.04,134.5,134.47,0.05666157]
[1764083407750,3.04,134.48,134.47,0.05666157]
[1764083407948,3.04,134.48,134.42,26.08]
[1764083408862,3.04,134.51,134.42,29.13]
[1764083409055,0.05512692,134.46,134.44,3.10045086]
[1764083409262,0.05447334,134.46,134.44,3.10045086]
[1764083409458,0.05447334,134.46,134.45,26.08]
[1764083409761,3.09447334,134.46,134.44,0.05045086]
[1764083410154,107.26407334,134.46,134.44,0.05045086]
[1764083410348,3.04,134.45,134.44,0.05045086]
[1764083410965,3.04,134.43,134.4,26.08]